bitfinex-derivatives/quotes_ETHF0:USTF0_20251119
["timestamp","ask_amount","ask_price","bid_price","bid_amount"]
[1763552764724,1.52003119,3094.8,3094.7,1.12885762]
[1763552765833,1.52003119,3094.8,3094.7,0.00285081]
[1763552766530,0.3855,3094.0,3093.9,0.52398]
[1763552766831,0.2461,3093.8,3093.7,3.96262]
[1763552767432,0.2461,3093.8,3093.7,3.73182]
[1763552767630,0.2461,3093.8,3093.7,3.73554869]
[1763552767829,0.77011,3093.8,3093.7,3.96634869]
[1763552770131,0.2461,3093.8,3093.7,3.96634869]
[1763552770435,0.77011,3093.8,3093.7,3.96634869]
[1763552770733,0.77011,3093.8,3093.7,3.44232869]
[1763552770939,0.77011,3093.8,3093.7,3.96635869]
[1763552771136,0.52401,3093.9,3093.8,0.75479]
[1763552771436,0.77011,3093.9,3093.8,1.88079681]
[1763552771640,0.77011,3093.8,3093.7,3.73555869]
[1763552772229,0.77011,3093.8,3093.7,0.00372869]
[1763552772430,1.51715276,3093.8,3093.7,0.00372869]
[1763552772826,0.2461,3092.9,3092.8,0.2308]
[1763552773140,0.2461,3092.9,3092.4,3.45833249]
[1763552773141,0.52426,3092.3,3092.2,0.2308]
[1763552773339,0.77036,3092.3,3092.2,0.2308]
[1763552773534,0.2461,3091.9,3091.8,0.75515]
[1763552774037,0.2461,3091.9,3091.8,0.23370446]
[1763552774038,0.77300205,3091.9,3091.8,0.23370446]
[1763552774240,0.77300205,3091.9,3091.8,0.75805446]
[1763552774729,0.24867205,3091.9,3091.8,0.75805446]
[1763552775242,0.38445632,3091.9,3091.8,0.75805446]
[1763552775438,0.63055632,3091.9,3091.8,0.75805446]
[1763552775838,0.2461,3091.9,3091.8,0.75805446]
[1763552776044,0.52432,3092.0,3091.9,0.75513]
[1763552776231,0.52800412,3092.0,3091.9,0.75513]
[1763552777533,0.00368412,3092.0,3091.9,0.75513]
[1763552778039,0.52799412,3092.0,3091.9,0.75513]
[1763552778243,0.77409412,3092.0,3091.9,0.2308]
[1763552778431,0.77409412,3092.0,3091.9,0.75513]
[1763552778633,0.77409412,3092.0,3091.9,0.2308]
[1763552778942,0.77409412,3092.0,3091.9,0.75513]
[1763552779133,0.77409412,3092.0,3091.9,0.2308]
[1763552779333,0.77043,3091.9,3091.8,0.00290446]
[1763552779835,0.77043,3091.9,3091.8,0.75805446]
[1763552780039,0.77043,3091.9,3091.8,0.23370446]
[1763552781140,0.77043,3091.9,3091.8,0.75805446]
[1763552783243,0.77043,3091.9,3091.8,0.23370446]
[1763552783538,0.77043,3091.9,3091.8,0.00290446]
[1763552784244,0.77043,3091.9,3091.8,0.52725446]
[1763552785134,0.2461,3091.9,3091.8,0.75805446]
[1763552785334,0.00368412,3092.0,3091.9,0.75513]
[1763552785844,0.23428412,3092.0,3091.9,0.75513]
[1763552786735,0.75859412,3092.0,3091.9,0.75513]
[1763552787142,0.75859412,3092.0,3091.8,0.00290446]
[1763552787143,0.75493,3091.9,3091.8,0.00290446]
[1763552787341,0.75498,3091.6,3091.5,0.13844982]
[1763552787543,0.75498,3091.6,3091.5,0.00484982]
[1763552788442,0.75498,3091.6,3091.5,0.00876715]
[1763552791646,0.76712,3090.8,3090.7,0.76573]
[1763552792742,0.76712,3090.8,3090.7,0.76831112]
[1763552792948,0.76712,3090.8,3090.7,0.24378112]
[1763552793144,3.97492,3090.8,3090.7,0.00258112]
[1763552795850,3.97492,3090.8,3090.7,0.24378112]
[1763552796547,3.97492,3090.8,3090.7,0.00258112]
[1763552798346,0.90657,3090.5,3090.4,0.00484982]
[1763552799241,0.90657,3090.5,3090.4,0.00791245]
[1763552803554,0.76717,3090.5,3090.4,0.77370245]
[1763552804456,0.76717,3090.5,3090.4,0.24911245]
[1763552805255,0.76717,3090.5,3090.4,0.77370245]
[1763552806154,0.76717,3090.5,3090.4,0.24911245]
[1763552806458,0.90657,3090.5,3090.4,0.00791245]
[1763552806658,1.65214544,3090.5,3090.4,0.00791245]
[1763552808856,1.51274544,3090.5,3090.4,0.00791245]
[1763552809865,1.65214544,3090.5,3090.4,0.00791245]
[1763552816657,1.51274544,3090.5,3090.4,0.00791245]
[1763552816854,1.51274544,3090.5,3090.4,0.24911245]
[1763552817368,1.51274544,3090.5,3090.4,0.00791245]
[1763552817369,2.67569453,3090.5,3090.4,0.00791245]
[1763552817758,2.81509453,3090.5,3090.4,0.00791245]
[1763552818666,1.65214544,3090.5,3090.4,0.00791245]
[1763552819064,0.76728,3090.1,3090.0,0.52465]
[1763552819271,0.98817544,3090.1,3090.0,0.76585]
[1763552819561,0.98817544,3090.1,3090.0,0.90475]
[1763552819772,1.51285544,3090.1,3090.0,0.90475]
[1763552819971,1.51285544,3090.1,3090.0,0.90870867]
[1763552820968,0.74557544,3090.1,3090.0,0.90870867]
[1763552821170,0.52462,3090.2,3090.1,0.52464]
[1763552821366,1.5158143,3090.2,3090.1,0.76584]
[1763552821667,1.5158143,3090.2,3090.0,0.14285867]
[1763552821668,0.00484982,3090.4,3090.3,0.7658]
[1763552821859,0.00484982,3090.4,3090.3,1.91873467]
[1763552822263,0.75383684,3090.4,3090.3,1.91873467]
[1763552825373,0.00484982,3090.4,3090.3,1.91873467]
[1763552826069,0.52943982,3090.4,3090.3,1.91873467]
[1763552826564,0.52943982,3090.4,3090.3,0.7658]
[1763552826770,0.52943982,3090.4,3090.0,0.00395867]
[1763552826771,0.75504,3090.1,3090.0,0.00395867]
[1763552826968,1.50394971,3090.1,3090.0,0.52860867]
[1763552828167,1.50394971,3090.1,3090.0,0.00395867]
[1763552829271,1.34552457,3090.1,3090.0,0.00395867]
[1763552832267,0.74890971,3090.1,3090.0,2.06534334]
[1763552832569,0.00484982,3090.4,3090.3,0.7678]
[1763552832770,0.00484982,3090.4,3090.3,1.92073467]
[1763552836469,0.00484982,3090.4,3090.3,0.7678]
[1763552837475,0.52943982,3090.4,3090.3,0.7678]
[1763552837775,0.00484982,3090.4,3090.3,0.7678]
[1763552838775,0.52943982,3090.4,3090.3,1.89514502]
[1763552839177,2.8239201,3090.7,3090.5,0.1406]
[1763552839476,3.5788601,3090.7,3090.6,0.2432]
[1763552839668,4.32711883,3090.7,3090.6,0.2432]
[1763552840577,0.75495,3090.6,3090.5,0.1406]
[1763552840765,1.50320873,3090.6,3090.5,0.1406]
[1763552840966,1.50320873,3090.6,3090.5,0.3838]
[1763552841779,1.50320873,3090.6,3090.5,0.1406]
[1763552842180,1.50320873,3090.6,3090.5,0.3838]
[1763552845073,1.50320873,3090.6,3090.0,3.35235867]
[1763552845074,0.76924,3090.2,3090.1,0.52464]
[1763552845273,0.76924,3090.1,3090.0,0.14455867]
[1763552845474,0.76924,3090.1,3090.0,0.00395867]
[1763552845874,0.76924,3090.1,3090.0,0.38335867]
[1763552846080,0.52464,3090.1,3090.0,0.38335867]
[1763552846882,0.52464,3090.1,3090.0,0.90800867]
[1763552847378,0.76921,3090.4,3090.3,0.2361]
[1763552847580,1.51662212,3090.4,3090.3,0.2361]
[1763552850287,0.7692,3090.3,3090.2,0.52461]
[1763552850583,1.51661212,3090.3,3090.2,0.52461]
[1763552850777,0.76924,3090.1,3090.0,0.38335867]
[1763552850974,1.51665212,3090.1,3090.0,0.90800867]
[1763552853286,0.52464,3090.1,3090.0,0.90800867]
[1763552853786,3.2078,3090.6,3090.1,0.7516]
[1763552854086,3.2078,3090.6,3090.0,0.14725867]
[1763552854087,3.73235,3090.6,3090.5,0.3647]
[1763552854287,4.70896069,3090.6,3090.5,0.3647]
[1763552855388,0.75392,3090.2,3090.1,0.75163]
[1763552855590,0.75392,3090.2,3090.1,0.52463]
[1763552855788,0.75392,3090.2,3090.0,0.14725867]
[1763552855789,0.75394,3090.1,3090.0,0.14725867]
[1763552855990,1.50142619,3090.1,3090.0,0.14725867]
[1763552856380,1.27212619,3090.1,3090.0,0.89890867]
[1763552856576,1.50142619,3090.1,3090.0,0.37425867]
[1763552856783,1.50142619,3090.1,3090.0,0.89890867]
[1763552856981,1.50142619,3090.1,3090.0,0.37425867]
[1763552857284,1.50142619,3090.1,3090.0,0.14725867]
[1763552858282,1.50142619,3090.1,3090.0,0.00395867]
[1763552859193,0.74748619,3090.1,3090.0,0.89330867]
[1763552859391,1.27212619,3090.1,3090.0,0.36865867]
[1763552859690,1.50142619,3090.1,3090.0,0.36865867]
[1763552860490,3.2078,3090.2,3090.1,0.75164]
[1763552860684,3.2078,3090.2,3090.1,1.87898502]
[1763552860889,0.75389,3090.4,3090.3,0.227]
[1763552861087,0.7539,3090.3,3090.2,0.52462]
[1763552861291,0.7539,3090.3,3090.2,0.75162]
[1763552861883,0.5246,3090.3,3090.2,0.75162]
[1763552862091,0.52458,3090.5,3090.4,0.52457]
[1763552862290,1.27247721,3090.5,3090.4,0.75157]
[1763552862688,1.27246721,3090.5,3090.4,1.87891502]
[1763552862890,3.73712982,3091.0,3090.9,0.7515]
[1763552863089,4.48511411,3091.0,3090.9,0.7515]
[1763552863986,0.2293,3090.7,3090.6,0.75154]
[1763552864192,0.75382,3090.8,3090.7,0.75154]
[1763552864396,0.2293,3090.9,3090.8,0.7515]
[1763552864591,0.97707725,3090.9,3090.8,0.7515]
[1763552865793,1.50157725,3090.9,3090.8,0.7515]
[1763552866592,0.52455,3090.7,3090.6,0.227]
[1763552867293,3.21264982,3091.0,3090.9,0.227]
[1763552867599,3.96018874,3091.0,3090.9,0.227]
[1763552869002,4.48466874,3091.0,3090.9,0.7515]
[1763552869603,3.73712982,3091.0,3090.9,0.7515]
[1763552871205,3.96642982,3091.0,3090.9,0.7515]
[1763552871700,3.44194982,3091.0,3090.9,0.7515]
[1763552873007,3.96642982,3091.0,3090.9,0.7515]
[1763552874406,3.44194982,3091.0,3090.9,0.7515]
[1763552874917,0.2293,3090.9,3090.8,1.65185502]
[1763552875109,0.2293,3090.9,3090.8,1.87885502]
[1763552875913,0.7538,3090.9,3090.8,1.87885502]
[1763552878011,0.7538,3090.9,3090.8,1.35434502]
[1763552879709,0.7538,3090.9,3090.8,1.87886502]
[1763552880513,3.21264982,3091.0,3090.6,0.52455]
[1763552880718,0.75385,3090.7,3090.6,0.52455]
[1763552880916,0.75385,3090.7,3090.6,0.75155]
[1763552882518,3.21264982,3091.0,3090.4,3.2078]
[1763552882519,0.235,3090.5,3090.4,3.2078]
[1763552882921,0.52457,3090.5,3090.4,3.95535]
[1763552883123,0.75957,3090.5,3090.4,3.95535]
[1763552883715,0.52454,3090.8,3090.7,0.74753]
[1763552883910,3.2078,3091.4,3091.3,0.74743]
[1763552884114,3.95511444,3091.4,3091.3,1.87477502]
[1763552884421,3.2078,3091.4,3091.3,1.87477502]
[1763552884822,3.2078,3091.9,3091.8,0.74733]
[1763552885028,0.235,3091.7,3091.6,0.74737]
[1763552885321,0.75938,3091.6,3091.5,0.13824982]
[1763552885522,0.75938,3091.6,3091.5,0.36124982]
[1763552886018,2.63374875,3091.6,3091.5,4.982e-05]
[1763552886422,8.63374875,3091.6,3091.5,4.982e-05]
[1763552888825,9.79466865,3091.6,3091.5,4.982e-05]
[1763552889122,8.63374875,3091.6,3091.5,4.982e-05]
[1763552890323,10.95719277,3091.6,3091.5,4.982e-05]
[1763552893029,4.95719277,3091.6,3091.5,4.982e-05]
[1763552893220,2.63374875,3091.6,3091.5,4.982e-05]
[1763552894032,4.2108852,3091.6,3091.5,4.982e-05]
[1763552894225,4.95790893,3091.6,3091.5,4.982e-05]
[1763552897129,4.95787148,3091.6,3091.5,4.982e-05]
[1763552897331,8.08087148,3091.6,3091.5,4.982e-05]
[1763552898134,5.75674875,3091.6,3091.5,4.982e-05]
[1763552899231,8.08087148,3091.6,3091.5,4.982e-05]
[1763552900836,5.78240152,3091.6,3091.5,4.982e-05]
[1763552911038,0.768,3090.3,3090.2,0.03091]
[1763552911243,4.19822373,3090.3,3090.2,0.03091]
[1763552911635,4.72282373,3090.3,3090.2,0.03091]
[1763552912237,0.74702373,3090.3,3090.2,6.79713]
[1763552912549,0.52459,3090.4,3090.3,0.2311]
[1763552913746,0.52457,3090.5,3090.4,0.52457]
[1763552913940,0.52457,3090.5,3090.4,0.75567]
[1763552914145,1.27261605,3090.5,3090.4,0.75567]
[1763552915049,1.27261605,3090.5,3090.4,0.2311]
[1763552915348,1.27261605,3090.5,3090.4,0.75569]
[1763552915747,0.74804605,3090.5,3090.4,0.75569]
[1763552916046,0.00484982,3090.6,3090.5,0.82987]
[1763552916441,0.00484982,3090.6,3090.5,4.03767]
[1763552916947,0.00484982,3090.6,3090.5,10.03767]
[1763552918653,0.52939982,3090.6,3090.5,10.03767]
[1763552919743,0.52459,3090.4,3090.3,0.5246]
[1763552919949,0.75489,3090.4,3090.3,0.7557]
[1763552920454,0.52457,3090.5,3090.4,0.75569]
[1763552921153,0.00484982,3090.6,3090.5,0.2311]
[1763552921354,0.52939982,3090.6,3090.5,0.82987]
[1763552921656,0.52939982,3090.6,3090.5,0.3053]
[1763552922651,0.52939982,3090.6,3090.5,0.2311]
[1763552922857,0.52939982,3090.6,3090.5,0.82987]
[1763552923157,0.52939982,3090.6,3090.5,0.2311]
[1763552923755,0.75969982,3090.6,3090.5,0.2311]
[1763552927961,1.50571694,3090.6,3090.5,0.2311]
[1763552930064,0.75489,3090.4,3090.3,0.2311]
[1763552930268,1.50090712,3090.4,3090.3,0.7557]
[1763552936258,0.00484982,3090.6,3090.5,0.75567]
[1763552936564,0.74968277,3090.6,3090.5,4.03767]
[1763552936871,0.00484982,3090.6,3090.5,4.03767]
[1763552938170,0.00484982,3090.6,3090.5,5.78649458]
[1763552939477,0.00484982,3090.6,3090.5,4.03767]
[1763552944275,0.52939982,3090.6,3090.5,3.96347]
[1763552944576,0.76809982,3090.6,3090.5,3.2078]
[1763552944873,0.90217,3090.5,3090.4,0.75257]
[1763552946188,0.90217,3090.5,3090.4,0.228]
[1763552946391,0.5246,3090.4,3090.3,0.5246]
[1763552946682,1.50748861,3090.4,3090.3,0.5246]
[1763552946883,1.50748861,3090.4,3090.3,0.7526]
[1763552948592,0.98288861,3090.4,3090.3,0.7526]
[1763552948793,0.2387,3090.4,3090.3,0.7526]
[1763552948987,0.98278948,3090.4,3090.3,0.7526]
[1763552950890,0.74408948,3090.4,3090.3,0.7526]
[1763552951092,0.66347,3090.5,3090.4,0.75259]
[1763552951093,0.52457,3090.5,3090.4,0.75259]
[1763552951396,1.26869558,3090.5,3090.4,0.75259]
[1763552951993,1.50739558,3090.5,3090.4,0.75259]
[1763552953693,1.64629558,3090.5,3090.4,0.228]
[1763552953899,0.7633,3090.3,3090.2,0.78352]
[1763552954286,0.52459,3090.4,3090.3,0.7526]
[1763552957397,0.00484982,3090.6,3090.5,0.75257]
[1763552957600,0.00484982,3090.6,3090.5,4.03427]
[1763552958302,0.76809982,3090.6,3090.5,3.96037]
[1763552958494,0.24354982,3090.6,3090.5,3.96037]
[1763552958695,0.00484982,3090.6,3090.5,3.96037]
[1763552961103,0.52939982,3090.6,3090.5,3.4358]
[1763552961304,0.00484982,3090.6,3090.5,3.96037]
[1763552962794,0.00484982,3090.6,3090.5,4.03427]
[1763552965495,0.52444,3091.3,3091.2,0.76415]
[1763552965810,1.50346233,3091.3,3091.2,0.2397]
[1763552966193,0.52445,3091.2,3091.1,0.52447]
[1763552966501,0.7581,3091.1,3091.0,0.52448]
[1763552966697,1.50352233,3091.1,3091.0,0.52448]
[1763552974114,0.6592,3091.0,3090.9,0.52449]
[1763552974312,1.62832233,3091.0,3090.9,0.52449]
[1763552976310,0.7482,3090.9,3090.6,3.2078]
[1763552976610,0.1347,3091.0,3090.9,0.7591]
[1763552976915,1.10407338,3091.0,3090.9,0.7591]
[1763552977916,0.74567338,3091.0,3090.9,0.7591]
[1763552978215,0.74815,3091.2,3091.1,0.2346]
[1763552978413,1.49395427,3091.2,3091.1,0.2346]
[1763552978611,0.74580427,3091.2,3091.1,0.75907]
[1763552979609,1.27025427,3091.2,3091.1,0.75907]
[1763552980620,0.74580427,3091.2,3091.1,0.75907]
[1763552981117,1.27025427,3091.2,3091.1,0.75907]
[1763552982820,1.49395427,3091.2,3091.1,0.75907]
[1763552985119,0.74580427,3091.2,3091.1,0.75907]
[1763552985311,0.2237,3091.8,3091.7,0.2346]
[1763552986918,0.74805,3091.8,3091.7,0.75897]
[1763552992220,0.2237,3091.8,3091.7,0.75897]
[1763552992415,0.83919412,3092.0,3091.9,0.75893]
[1763552993120,0.00368412,3092.0,3091.9,0.75893]
[1763552994529,0.22738412,3092.0,3091.9,0.75893]
[1763552994924,0.88639412,3092.0,3091.9,0.75893]
[1763552995626,0.36208412,3092.0,3091.9,0.75893]
[1763552996121,0.22738412,3092.0,3091.9,0.75893]
[1763552996322,0.00368412,3092.0,3091.9,0.75893]
[1763553002429,0.89389412,3092.0,3091.9,0.75893]
[1763553002928,0.9045,3091.5,3091.4,0.00484982]
[1763553003230,4.85040717,3091.5,3091.4,0.00484982]
[1763553006937,4.85040717,3091.5,3091.4,0.52926982]
[1763553008937,1.64260717,3091.5,3091.4,0.52926982]
[1763553009139,4.85126727,3091.5,3091.4,0.52926982]
[1763553010332,1.64346727,3091.5,3091.4,0.52926982]
[1763553010739,3.2078,3091.9,3091.7,0.52435]
[1763553010740,0.52436,3091.8,3091.7,0.52435]
[1763553010938,0.73892038,3091.8,3091.7,3.95745]
[1763553011145,0.90811412,3092.0,3091.9,0.52433]
[1763553011338,1.64699632,3092.0,3091.9,0.52433]
[1763553011842,0.00368412,3092.0,3091.9,0.74963]
[1763553012944,0.24158412,3092.0,3091.9,0.74963]
[1763553013139,0.38378412,3092.0,3091.9,0.74963]
[1763553013539,0.24158412,3092.0,3091.9,0.74963]
[1763553013743,0.00368412,3092.0,3091.9,0.74963]
[1763553017946,0.00484982,3092.1,3091.9,0.74963]
[1763553017947,3.394e-05,3092.1,3091.9,0.74963]
[1763553018152,0.3726,3093.0,3092.9,0.2253]
[1763553018346,0.89675,3093.0,3092.9,3.95726]
[1763553018552,1.635457,3093.0,3092.9,3.73196]
[1763553019049,1.63906891,3093.0,3092.9,3.73494898]
[1763553020354,1.63906891,3093.0,3092.9,3.21078898]
[1763553020649,1.63906891,3093.0,3092.9,3.73494898]
[1763553021852,1.63906891,3093.0,3092.9,3.96024898]
[1763553022457,1.11491891,3093.0,3092.9,3.96024898]
[1763553023153,0.00361191,3093.0,3092.9,3.96024898]
[1763553023650,0.52776191,3093.0,3092.9,3.96024898]
[1763553023844,0.90786191,3093.0,3092.9,3.43608898]
[1763553024044,0.90786191,3093.0,3092.9,3.96024898]
[1763553024657,0.90786191,3093.0,3092.9,3.43608898]
[1763553024854,0.90786191,3093.0,3092.9,3.96024898]
[1763553025456,0.38371191,3093.0,3092.9,3.96024898]
[1763553025656,0.90786191,3093.0,3092.9,3.96024898]
[1763553026046,0.38371191,3093.0,3092.9,3.96024898]
[1763553026651,0.90786191,3093.0,3092.9,3.96024898]
[1763553027257,0.38371191,3093.0,3092.9,3.96024898]
[1763553028759,0.00361191,3093.0,3092.9,3.96024898]
[1763553029155,0.00361191,3093.0,3092.9,5.11132167]
[1763553029353,0.00484982,3093.3,3093.2,0.75041]
[1763553030361,0.00747568,3093.3,3093.2,0.75041]
[1763553033259,0.52402,3093.8,3093.7,0.75033]
[1763553034348,0.52764605,3093.8,3093.7,0.75033]
[1763553034760,0.00362605,3093.8,3093.7,0.75033]
[1763553035648,0.00362605,3093.8,3093.7,3.95813]
[1763553037660,0.00484982,3094.1,3094.0,0.88358]
[1763553038659,0.00788337,3094.1,3094.0,0.88358]
[1763553039861,0.00788337,3094.1,3094.0,4.09138]
[1763553040654,0.76604337,3094.1,3094.0,3.2078]
[1763553041053,0.7582,3093.9,3093.8,0.52401]
[1763553041257,0.1445,3094.0,3093.9,0.75439]
[1763553041461,0.1445,3094.0,3093.5,3.3435]
[1763553041462,0.00788337,3094.1,3094.0,0.75438]
[1763553041760,0.53184337,3094.1,3094.0,0.75438]
[1763553041963,0.76604337,3094.1,3094.0,0.75438]
[1763553043250,0.24208337,3094.1,3094.0,0.75438]
[1763553043458,0.00788337,3094.1,3094.0,0.75438]
[1763553043654,0.00788337,3094.1,3094.0,0.88358]
[1763553043855,0.00788337,3094.1,3094.0,2.03465269]
[1763553046957,0.24208337,3094.1,3094.0,0.75438]
[1763553047162,0.76604337,3094.1,3094.0,0.52398]
[1763553047664,0.53184337,3094.1,3094.0,0.75438]
[1763553047859,0.00788337,3094.1,3094.0,0.75438]
[1763553048557,0.53184337,3094.1,3094.0,0.75438]
[1763553048759,0.76604337,3094.1,3094.0,0.75438]
[1763553049064,0.24208337,3094.1,3094.0,0.75438]
[1763553049564,0.24208337,3094.1,3094.0,3.96218]
[1763553050266,0.76604337,3094.1,3094.0,3.96218]
[1763553050764,0.76604337,3094.1,3094.0,0.75438]
[1763553051263,0.00788337,3094.1,3094.0,3.96218]
[1763553051868,0.00788337,3094.1,3094.0,4.09138]
[1763553052752,1.30673633,3095.0,3094.6,0.52386]
[1763553052960,0.2342,3094.7,3094.6,0.75426]
[1763553053262,0.97048236,3094.7,3094.6,0.75426]
[1763553053462,3.2078,3095.1,3095.0,0.2304]
[1763553053771,0.1445,3095.0,3094.5,3.2768]
[1763553054060,0.75803,3094.9,3094.8,0.52383]
[1763553056163,0.75803,3094.9,3094.8,0.75423]
[1763553056360,0.75803,3094.9,3094.5,3.2768]
[1763553056565,0.75804,3094.8,3094.7,0.2304]
[1763553057267,0.2342,3094.6,3094.5,3.2078]
[1763553057667,0.2342,3094.6,3094.5,3.4382]
[1763553058866,0.75807,3094.6,3094.5,3.96209]
[1763553059172,0.2342,3094.6,3094.5,3.96209]
[1763553059375,0.75806,3094.7,3094.6,0.75427]
[1763553060686,0.75807,3094.6,3094.5,3.73169]
[1763553060969,1.49433783,3094.6,3094.5,3.73169]
[1763553061972,0.73626783,3094.6,3094.5,3.96039]
[1763553062171,0.2461,3094.6,3094.5,3.96039]
[1763553062773,0.76997,3094.6,3094.5,3.96039]
[1763553063276,1.50686895,3094.6,3094.5,3.96039]
[1763553064066,0.73689895,3094.6,3094.5,3.96039]
[1763553064777,1.26076895,3094.6,3094.5,3.96039]
[1763553064980,0.73689895,3094.6,3094.5,3.96039]
[1763553067278,0.73689895,3094.6,3094.5,4.02939]
[1763553067582,0.66832,3095.0,3094.9,0.75252]
[1763553067879,0.91442,3095.0,3094.9,0.75252]
[1763553068084,0.2461,3094.8,3094.7,0.2287]
[1763553068274,0.76996,3094.8,3094.7,0.2287]
[1763553068480,1.50736898,3094.8,3094.7,0.75256]
[1763553069178,0.73740898,3094.8,3094.7,0.75256]
[1763553070084,0.52383,3094.9,3094.8,0.75254]
[1763553070483,1.2611866,3094.9,3094.8,0.75254]
[1763553071578,0.76994,3094.8,3094.7,0.52385]
[1763553071880,0.76994,3094.8,3094.7,0.75255]
[1763553072687,0.76994,3094.8,3094.7,0.2287]
[1763553072878,0.76997,3094.6,3094.5,3.2078]
[1763553073183,1.50742578,3094.6,3094.5,3.2078]
[1763553073384,1.50742578,3094.6,3094.5,3.73169]
[1763553073781,1.50742578,3094.6,3094.5,3.2078]
[1763553080185,0.77002,3094.3,3094.2,0.52393]
[1763553080389,0.98355578,3094.3,3094.2,0.52393]
[1763553080592,0.98355578,3094.3,3094.2,0.75263]
[1763553081477,1.16183633,3094.9,3094.8,0.75254]
[1763553081681,0.00349382,3095.1,3095.0,0.75251]
[1763553083484,1.16183633,3095.7,3095.4,0.2287]
[1763553083690,0.76979,3095.7,3095.6,0.2287]
[1763553083891,0.76979,3095.7,3095.6,0.7524]
[1763553083892,0.2461,3095.7,3095.6,0.7524]
[1763553084083,0.76979,3095.7,3095.6,0.7524]
[1763553084589,0.77231594,3095.7,3095.6,0.23147268]
[1763553085384,0.77231594,3095.7,3095.6,0.00277268]
[1763553085784,0.76766,3095.3,3095.2,0.00484982]
[1763553086699,0.76766,3095.3,3095.2,0.00898964]
[1763553087686,0.76766,3095.3,3095.2,0.75545964]
[1763553087885,0.52376,3095.3,3095.2,0.75545964]
[1763553088080,0.76764,3095.4,3095.2,0.53275964]
[1763553088292,0.76764,3095.4,3095.3,0.74646]
[1763553088491,0.76764,3095.4,3095.3,0.2227]
[1763553090294,0.2439,3095.4,3095.3,0.2227]
[1763553090891,0.76764,3095.4,3095.3,0.2227]
[1763553091492,0.52372,3095.6,3095.5,0.52371]
[1763553091685,0.74594,3095.4,3095.3,0.74754]
[1763553092394,0.2222,3095.4,3095.3,0.74754]
[1763553092592,0.74842594,3095.7,3095.6,0.2238]
[1763553092992,0.7459,3095.6,3095.5,0.74752]
[1763553093589,1.48076945,3095.6,3095.5,0.74752]
[1763553093994,1.48076945,3095.6,3095.5,0.2238]
[1763553094196,0.89072,3095.5,3095.4,0.52373]
[1763553094496,0.89072,3095.5,3095.4,0.74753]
[1763553096216,0.52372,3095.6,3095.5,0.74752]
[1763553096412,0.74592,3095.6,3095.5,0.2238]
[1763553096712,1.48060253,3095.6,3095.5,0.2238]
[1763553097710,1.48060253,3095.6,3095.0,0.1355]
[1763553097711,0.74611,3094.4,3094.3,3.4316]
[1763553098015,2.60478349,3094.4,3094.3,3.4316]
[1763553098211,2.60478349,3094.4,3094.3,3.2078]
[1763553098807,2.60478349,3094.4,3094.3,3.21128382]
[1763553100622,0.2222,3094.4,3094.3,3.95900382]
[1763553100818,0.2222,3094.4,3094.3,3.43508382]
[1763553101211,0.74611,3094.4,3094.3,3.43508382]
[1763553101721,0.74611,3094.4,3094.3,0.22728382]
[1763553102417,0.74611,3094.4,3094.3,0.00348382]
[1763553104320,1.87010096,3094.4,3094.3,0.00348382]
[1763553104621,2.60412359,3094.4,3094.3,0.00348382]
[1763553105216,0.74614,3094.2,3094.1,0.02992]
[1763553105423,1.48016263,3094.2,3094.1,0.02992]
[1763553105925,0.74631,3093.2,3093.1,3.2078]
[1763553106227,0.75047583,3093.2,3093.1,3.21022794]
[1763553107821,0.75047583,3093.2,3093.1,0.00242794]
[1763553108018,1.48336313,3093.2,3093.1,0.00242794]
[1763553108418,0.75047583,3093.2,3093.1,0.00242794]
[1763553108717,1.87446679,3093.2,3093.1,2.794e-05]
[1763553108917,1.4826945,3093.2,3093.1,2.794e-05]
[1763553109414,0.75047583,3093.2,3093.1,2.794e-05]
[1763553110313,1.48205008,3093.2,3093.1,2.794e-05]
[1763553111326,0.75047583,3093.2,3093.1,2.794e-05]
[1763553111516,1.48092561,3093.2,3093.1,2.794e-05]
[1763553112220,0.75047583,3093.2,3093.1,2.794e-05]
[1763553116319,3.95827583,3093.2,3093.1,2.794e-05]
[1763553116522,0.74646,3092.3,3092.2,3.2078]
[1763553116726,0.2222,3091.9,3091.8,3.2078]
[1763553116914,0.74653,3091.9,3091.8,3.2078]
[1763553117525,0.74653,3091.9,3091.8,3.21050569]
[1763553118628,0.22704982,3092.2,3092.1,0.2238]
[1763553119713,0.75132982,3092.2,3092.1,0.2238]
[1763553119918,0.00484982,3092.2,3092.1,0.7481]
[1763553120117,0.52912982,3092.2,3092.1,0.2238]
[1763553120323,0.00484982,3092.2,3091.9,0.2238]
[1763553120525,0.89131,3092.0,3091.9,0.2238]
[1763553120921,0.00484982,3092.2,3092.1,0.7481]
[1763553121128,0.22704982,3092.2,3092.1,0.7481]
[1763553121523,0.75132982,3092.2,3092.1,0.2238]
[1763553121731,0.3766,3092.0,3091.9,0.2251]
[1763553121931,0.3766,3092.0,3091.9,0.74943]
[1763553122128,0.76401,3092.1,3092.0,0.2251]
[1763553122328,0.76401,3092.1,3092.0,0.74941]
[1763553123432,0.2397,3092.1,3092.0,0.74941]
[1763553123734,0.2397,3092.1,3091.8,3.21050569]
[1763553123735,0.76882982,3092.2,3092.1,0.7494]
[1763553124224,0.76882982,3092.2,3092.1,0.2251]
[1763553124628,0.76403,3091.9,3091.8,3.21050569]
[1763553125131,0.76403,3091.9,3091.8,3.43560569]
[1763553125930,0.66122,3092.0,3091.9,0.74943]
[1763553126523,0.52913982,3092.2,3092.1,0.5243]
[1763553126722,0.76883982,3092.2,3092.1,0.2251]
[1763553127834,0.52433,3091.9,3091.8,3.95994569]
[1763553128234,0.3766,3092.0,3091.9,0.74942]
[1763553128535,0.764,3092.1,3092.0,0.74941]
[1763553128726,0.00484982,3092.2,3092.1,0.7494]
[1763553129836,0.52912982,3092.2,3092.1,0.7494]
[1763553130037,0.76882982,3092.2,3092.1,0.2251]
[1763553130249,0.76403,3091.9,3091.8,3.43560569]
[1763553131331,0.76403,3091.9,3091.8,3.95995569]
[1763553131930,0.76403,3091.9,3091.8,3.43560569]
[1763553132837,0.76403,3091.9,3091.8,0.00270569]
[1763553133136,1.49768787,3091.9,3091.8,0.00270569]
[1763553137243,2.6576316,3091.9,3091.8,0.00270569]
[1763553141045,0.2397,3091.1,3091.0,3.2078]
[1763553141244,0.76417,3091.1,3091.0,3.2078]